Cogmind - Beta 14 @@@ ROGUE MODE // 2025.05.03 @ 18:19:03 Player: Kakograf Result: Destroyed by S-27 Virus with Autogun Performance ------------- Evolutions (4) 2000 Regions Visited (8) 1600 Robots Destroyed (33) 165 Value Destroyed (672) 672 Prototype IDs (3) 60 Alien Tech Used (0) 0 Bonus (0) 0 TOTAL SCORE: 4497 Bonus ------- None Cogmind --------- Core Integrity 0/850 Matter 1/300 Energy 100/100 System Corruption 8% Temperature Cool (47) Movement Core (50) Location -6/Factory Parts ------- > --- POWER (2) -------- (None) > --- PROPULSION (4) --- (None) > --- UTILITY (4) ------ (None) > --- WEAPON (5) ------- (None) > --- INVENTORY (5) ---- Xenon Bombardment Thruster Weight Redist. System Improved Shield Generator Improved Proton Missile Launcher Axe Peak State ------------ > --- POWER ------------ Light Ion Engine Micro Nuclear Core > --- PROPULSION ------- Improved Flight Unit Improved VTOL Module Cooled VTOL Module > --- UTILITY ---------- Compact Matter Pod Targeting Computer Targeting Computer Improved Shield Generator > --- WEAPON ----------- Mini Grenade Launcher Mini Grenade Launcher Mini Grenade Launcher Mini Grenade Launcher > --- INVENTORY -------- Cesium-ion Thruster EMP Blaster Missile Launcher Axe [Rating: 35] Favorites ----------- Power Improved Ion Engine Engine Improved Ion Engine Power Core Fusion Compressor Propulsion Aluminum Leg Treads Advanced Treads Leg Aluminum Leg Flight Unit Cooled VTOL Module Utility Targeting Computer Device Trap Scanner Storage Compact Matter Pod Processor Targeting Computer Protection Hardened Medium Armor Plating Weapon Missile Launcher Energy Gun Small Laser Energy Cannon Particle Cannon Ballistic Gun Light Assault Rifle Launcher Missile Launcher Slashing Weapon Axe Build | -11 -10 -10 -9 -8 -7 -6 -6 -6 ------- Run | Yrd Mat Min Mat Mat Fac Fac Was Fac Slots Evolved 8 | . . . 2 2 2 2 . . Power 1 | . . . . . 1 . . . Propulsion 2 | . . . . . 1 1 . . Utility 2 | . . . 1 1 . . . . Weapon 3 | . . . 1 1 . 1 . . Parts Attached 46 | 5 1 5 9 10 12 3 1 . Power 8 | 1 . 1 1 1 2 2 . . Engine 4 | 1 . 1 1 1 . . . . Core 4 | . . . . . 2 2 . . Reactor . | . . . . . . . . . Propulsion 12 | 2 . 3 . 2 4 1 . . Treads 2 | . . . . 2 . . . . Leg 5 | 2 . 3 . . . . . . Wheel . | . . . . . . . . . Hover . | . . . . . . . . . Flight 5 | . . . . . 4 1 . . Utility 9 | . 1 . 3 2 2 . 1 . Device 3 | . . . 1 . 1 . 1 . Storage 1 | . . . . 1 . . . . Processor 3 | . . . 2 . 1 . . . Hackware . | . . . . . . . . . Protection 2 | . 1 . . 1 . . . . Artifact . | . . . . . . . . . Weapon 17 | 2 . 1 5 5 4 . . . Energy Gun 2 | 1 . 1 . . . . . . Energy Cannon 1 | . . . 1 . . . . . Ballistic Gun 2 | 1 . . 1 . . . . . Ballistic Cannon . | . . . . . . . . . Launcher 10 | . . . 3 4 3 . . . Special Weapon . | . . . . . . . . . Impact Weapon . | . . . . . . . . . Slashing Weapon 2 | . . . . 1 1 . . . Piercing Weapon . | . . . . . . . . . Special Melee Weapon . | . . . . . . . . . Unidentified Prototypes 3 | . . . . . 3 . . . Parts Lost 22 | . . 6 . 5 5 5 1 . Power 6 | . . 2 . 1 2 1 . . Propulsion 5 | . . 1 . . 1 3 . . Utility 5 | . . 1 . 1 1 1 1 . Weapon 6 | . . 2 . 3 1 . . . Highest Loss Streak 5 | . . 5 . 2 5 3 1 . To Critical Strikes . | . . . . . . . . . Average Slot Usage (%) 68 | . 73 43 71 85 87 44 9 . Engine 6 | . 14 3 7 9 6 . . . Core 1 | . . . . . 5 9 . . Treads 5 | . . . . 12 4 . . . Leg 8 | . 28 24 22 3 . . . . Flight 4 | . . . . . 13 15 . . Device 3 | . . . 7 5 . . 4 . Storage 2 | . . . . 2 6 . . . Processor 10 | . . . 6 18 14 8 4 . Protection 3 | . 2 1 . 8 2 . . . Energy Gun 2 | . 14 11 4 . . . . . Ballistic Gun 1 | . 14 1 1 . . . . . Launcher 16 | . . . 20 21 27 9 . . Slashing Weapon 2 | . . . . 4 2 . . . Peak Build Rating 35 | 5 7 7 18 26 35 32 8 1 Average Rating 17 | 3 5 3 12 21 28 22 6 1 On Entrance 9 | . 5 7 3 18 24 20 3 1 Naked Turns 190 | . . 18 . . . . 19 153 Heaviest Build 36 | 8 15 15 27 36 33 15 1 . Greatest Support 45 | 20 20 20 20 45 45 17 3 3 Greatest Overweight (x) 1 | . . . 1 1 1 1 . . Average Overweight (x) . | . . . . . . . . . Largest Inventory Capacity 5 | 5 5 5 5 5 5 5 5 5 Average Capacity 5 | 5 5 5 5 5 5 5 5 5 Most Carried 5 | 5 1 2 5 5 5 5 5 5 Average Carried 3 | . . . 2 3 4 4 4 4 Final Capacity 5 | 5 5 5 5 5 5 5 5 5 Final Carried 5 | . . 1 4 4 5 5 4 5 Class Distribution -------------------- 43% | Mutant 34% | Bomber 16% | Sprinter 5% | Skirmisher Dominant Class ---------------- Mutant | -10/Materials Mutant | -10/Mines Skirmisher | -9/Materials Bomber | -8/Materials Sprinter | -7/Factory Sprinter | -6/Factory Mutant | -6/Waste Mutant | -6/Factory Resources | -11 -10 -10 -9 -8 -7 -6 -6 -6 ----------- Run | Yrd Mat Min Mat Mat Fac Fac Was Fac Matter Collected 764 | 186 . 101 30 340 97 10 . . Remotely . | . . . . . . . . . Salvage Created 493 | . . 59 57 323 54 . . . Parts 40 | . . 3 3 31 3 . . . Haulers Intercepted . | . . . . . . . . . Recyclers Shooed 5 | . . 1 . 4 . . . . Parts Field Recycled . | . . . . . . . . . Retrieved Matter . | . . . . . . . . . Parts Self-Destructed . | . . . . . . . . . Prevented . | . . . . . . . . . Kills | -11 -10 -10 -9 -8 -7 -6 -6 -6 ------- Run | Yrd Mat Min Mat Mat Fac Fac Was Fac Combat Hostiles Destroyed 24 | . . 3 2 13 6 . . . Melee 3 | . . . . 3 . . . . Guns 3 | . . 3 . . . . . . Cannons 1 | . . . 1 . . . . . AOE 17 | . . . 1 10 6 . . . Classes Destroyed 9 | . . 2 1 6 . . . . Worker 4 | . . . . 4 . . . . Builder 2 | . . . . 2 . . . . Tunneler 2 | . . . . 2 . . . . Recycler 1 | . . . . 1 . . . . Watcher 2 | . . . . 1 1 . . . Swarmer 14 | . . . . 10 4 . . . Grunt 1 | . . 1 . . . . . . Sentry 7 | . . . 2 3 2 . . . Assembled 2 | . . 2 . . . . . . Best Kill Streak 6 | . . 2 1 6 6 . . . Combat Bots Only 6 | . . 2 1 4 6 . . . Max Kills in Single Turn 4 | . . 1 1 4 4 . . . Gunslinging . | . . . . . . . . . Exploded 4 | . . . 1 3 4 . . . Melee 1 | . . . . 1 . . . . Uniques/NPCs Destroyed . | . . . . . . . . . Combat | -11 -10 -10 -9 -8 -7 -6 -6 -6 -------- Run | Yrd Mat Min Mat Mat Fac Fac Was Fac Hostile Shots Fired 499 | . . 64 12 101 198 41 1 82 Missed 233 | . . 22 5 28 114 26 . 38 Damage Taken 3783 | . . 832 104 971 842 344 36 654 Core 1690 | . . 247 29 192 370 162 36 654 Absorbed by Shields 14 | . . . . . . . . 14 Core Remaining (%) 61 | 100 . 1 92 65 47 . . . Volleys Fired 40 | . 5 9 5 15 6 . . . Largest 4 | . 2 2 3 3 4 . . . Hottest 120 | . 70 70 108 108 120 . . . Shots Fired 86 | . 10 13 12 27 24 . . . Gun 26 | . 10 13 3 . . . . . Cannon 3 | . . . 3 . . . . . Launcher 57 | . . . 6 27 24 . . . Special . | . . . . . . . . . Kinetic 9 | . 5 4 . . . . . . Thermal 20 | . 5 9 6 . . . . . Explosive 48 | . . . 6 18 24 . . . Electromagnetic 9 | . . . . 9 . . . . Robot Hit Streak 14 | . 1 6 14 7 8 . . . Robot Miss Streak 3 | . 3 3 1 2 1 . . . Penetration Max . | . . . . . . . . . Secondary Targets . | . . . . . . . . . Shots Hit Robots 53 | . 3 9 11 16 14 . . . Core Hits 74 | . 2 6 4 40 22 . . . Critical Kills . | . . . . . . . . . Critical Parts Destroyed . | . . . . . . . . . Critical Strikes . | . . . . . . . . . Melee Attacks 22 | . . . . 15 7 . . . Impact . | . . . . . . . . . Slashing 22 | . . . . 15 7 . . . Piercing . | . . . . . . . . . Sneak Attacks 3 | . . . . 3 . . . . Combat Hostiles . | . . . . . . . . . Follow-up Attacks . | . . . . . . . . . Damage Inflicted 2739 | . 40 114 188 1541 856 . . . Guns 187 | . 40 114 33 . . . . . Cannons 62 | . . . 62 . . . . . Explosions 2071 | . . . 93 1221 757 . . . Melee 362 | . . . . 263 99 . . . Ramming 57 | . . . . 57 . . . . Kinetic 60 | . 27 33 . . . . . . Thermal 189 | . 13 81 95 . . . . . Explosive 1884 | . . . 93 1034 757 . . . Electromagnetic 187 | . . . . 187 . . . . Impact . | . . . . . . . . . Slashing 362 | . . . . 263 99 . . . Piercing . | . . . . . . . . . Highest Corruption 8 | . . . . . . . 6 8 Average Corruption 6 | . . . . . . . 6 6 Corruption Purged . | . . . . . . . . . Corruption Blocked . | . . . . . . . . . Effects 9 | . . . . . . . 3 6 Message Errors 1 | . . . . . . . . 1 Matter Fused 1 | . . . . . . . . 1 Heat Flow Errors 2 | . . . . . . . 1 1 Energy Discharges 2 | . . . . . . . 1 1 Data Loss (minor) 2 | . . . . . . . 1 1 Data Loss (major) 1 | . . . . . . . . 1 Overload Shots . | . . . . . . . . . Overflow Damage 60 | . . . . 20 40 . . . Projectiles . | . . . . . . . . . Explosions 60 | . . . . 20 40 . . . Melee . | . . . . . . . . . Knockbacks . | . . . . . . . . . Impact . | . . . . . . . . . Kinetic . | . . . . . . . . . Secondary . | . . . . . . . . . Self-Inflicted Damage 115 | . . . . 102 13 . . . Shots 6 | . . . . 5 1 . . . Rammed 31 | . . . . 31 . . . . Targets Rammed 35 | . . 2 . 33 . . . . Kicked 4 | . . 2 . 2 . . . . Crushed . | . . . . . . . . . Highest Temperature 199 | . 40 55 90 113 199 38 130 195 Average Temperature 48 | . 19 24 44 45 69 18 74 121 Received Heat Transfer 609 | . . 156 36 198 156 63 . . Siege Activations . | . . . . . . . . . Robots Corrupted . | . . . . . . . . . Combat Hostiles . | . . . . . . . . . Parts Fried . | . . . . . . . . . Impact Corruptions . | . . . . . . . . . Robots Melted . | . . . . . . . . . Combat Hostiles . | . . . . . . . . . Parts Melted . | . . . . . . . . . Heat Transferred 434 | . 37 211 186 . . . . . Parts Sabotaged . | . . . . . . . . . Parts Stolen . | . . . . . . . . . Parts Stripped . | . . . . . . . . . Power Chain Reactions . | . . . . . . . . . Alert | -11 -10 -10 -9 -8 -7 -6 -6 -6 ------- Run | Yrd Mat Min Mat Mat Fac Fac Was Fac Peak Influence 309 | . 15 45 146 213 309 192 78 152 Initial 96 | . . 5 13 . 96 67 63 47 Average 80 | . 5 22 75 78 127 105 73 101 Maximum Alert Level 1 | . . . . 1 1 . . . Low Security (%) 96 | 100 100 100 100 92 91 100 100 100 Level 1 3 | . . . . 7 8 . . . Level 2 . | . . . . . . . . . Level 3 . | . . . . . . . . . Level 4 . | . . . . . . . . . Level 5 . | . . . . . . . . . High Security . | . . . . . . . . . Max Security . | . . . . . . . . . Squads Dispatched 5 | . 3 . . . . 1 . 1 Investigation 2 | . 1 . . . . . . 1 Extermination . | . . . . . . . . . Reinforcement 3 | . 2 . . . . 1 . . Assault . | . . . . . . . . . Garrison . | . . . . . . . . . Intercept . | . . . . . . . . . Searches Triggered . | . . . . . . . . . Construction Impeded . | . . . . . . . . . Haulers Reinforced . | . . . . . . . . . Active Scanning Responses . | . . . . . . . . . Cargo Convoy Interrupts . | . . . . . . . . . Stealth | -11 -10 -10 -9 -8 -7 -6 -6 -6 --------- Run | Yrd Mat Min Mat Mat Fac Fac Was Fac Distress Signals 6 | . 2 . . 1 2 . . 1 Communications Jammed . | . . . . . . . . . Distress Signals . | . . . . . . . . . Times Spotted 89 | . 3 25 2 14 17 14 6 8 Peak Tracking Total 14 | . 2 14 1 5 10 5 6 5 Tactical Retreats 8 | . . 1 . 1 . 5 . 1 Traps | -11 -10 -10 -9 -8 -7 -6 -6 -6 ------- Run | Yrd Mat Min Mat Mat Fac Fac Was Fac Traps Triggered 5 | . 1 . . . . 1 . 3 Indirectly . | . . . . . . . . . Trap Hack Attempts . | . . . . . . . . . Triggered . | . . . . . . . . . Disarmed . | . . . . . . . . . Reprogrammed . | . . . . . . . . . Reused . | . . . . . . . . . Traps Extracted . | . . . . . . . . . Installed . | . . . . . . . . . Triggered . | . . . . . . . . . Machines | -11 -10 -10 -9 -8 -7 -6 -6 -6 ---------- Run | Yrd Mat Min Mat Mat Fac Fac Was Fac Machines Disabled . | . . . . . . . . . Max in Single Turn . | . . . . . . . . . Machines Repaired . | . . . . . . . . . Machines Dismantled . | . . . . . . . . . Machines Sabotaged . | . . . . . . . . . Overloaded Fab Kills . | . . . . . . . . . Hacking | -11 -10 -10 -9 -8 -7 -6 -6 -6 --------- Run | Yrd Mat Min Mat Mat Fac Fac Was Fac Machines Accessed 8 | . 1 . 2 2 2 1 . . Terminals 7 | . 1 . 2 2 1 1 . . Fabricators . | . . . . . . . . . Repair Stations 1 | . . . . . 1 . . . Recycling Units . | . . . . . . . . . Scanalyzers . | . . . . . . . . . Garrison Access . | . . . . . . . . . Total Hacks 24 | . 3 . 10 6 4 1 . . Successful 10 | . 1 . 5 3 . 1 . . Failed 14 | . 2 . 5 3 4 . . . Catastrophic 2 | . 1 . . . 1 . . . Database Lockouts . | . . . . . . . . . Manual 10 | . 1 . 3 4 2 . . . Terminals 22 | . 3 . 10 6 2 1 . . Fabricators . | . . . . . . . . . Repair Stations 2 | . . . . . 2 . . . Recycling Units . | . . . . . . . . . Scanalyzers . | . . . . . . . . . Garrison Access . | . . . . . . . . . Terminal Hacks 10 | . 1 . 5 3 . 1 . . Open DSF 1 | . . . . . . 1 . . Alert Level 1 | . . . 1 . . . . . Surveillance Status 2 | . . . 1 1 . . . . Investigation Status 1 | . . . 1 . . . . . Zone Layout 5 | . 1 . 2 2 . . . . Fabricator Hacks . | . . . . . . . . . Repair Station Hacks . | . . . . . . . . . Recycling Unit Hacks . | . . . . . . . . . Scanalyzer . | . . . . . . . . . Garrison Access Hacks . | . . . . . . . . . Unauthorized Hacks . | . . . . . . . . . Terminals . | . . . . . . . . . Fabricators . | . . . . . . . . . Repair Stations . | . . . . . . . . . Recycling Units . | . . . . . . . . . Scanalyzers . | . . . . . . . . . Garrison Access . | . . . . . . . . . Data Cores Recovered . | . . . . . . . . . Used . | . . . . . . . . . Hacking Detections 7 | . 1 . 2 2 2 . . . Full Trace Events 1 | . . . . 1 . . . . Feedback Events . | . . . . . . . . . Feedback Blocked . | . . . . . . . . . Robot Schematics Acquired . | . . . . . . . . . Robots Built . | . . . . . . . . . Authchips . | . . . . . . . . . Time . | . . . . . . . . . Total Robot Build Rating . | . . . . . . . . . Part Schematics Acquired . | . . . . . . . . . Parts Built . | . . . . . . . . . Authchips . | . . . . . . . . . Time . | . . . . . . . . . Total Part Build Rating . | . . . . . . . . . Parts Repaired . | . . . . . . . . . Time . | . . . . . . . . . Parts Recycled . | . . . . . . . . . Recycled Matter . | . . . . . . . . . Retrieved Matter . | . . . . . . . . . Retrieved Components . | . . . . . . . . . Parts Scanalyzed . | . . . . . . . . . Part Schematics Acquired . | . . . . . . . . . Parts Damaged . | . . . . . . . . . Bothacking | -11 -10 -10 -9 -8 -7 -6 -6 -6 ------------ Run | Yrd Mat Min Mat Mat Fac Fac Was Fac Used RIF Installer . | . . . . . . . . . Robots Hacked . | . . . . . . . . . Non-combat . | . . . . . . . . . Combat . | . . . . . . . . . Robot Hacks Applied . | . . . . . . . . . Relay Couplers Released . | . . . . . . . . . Fabnet Peak Effective % . | . . . . . . . . . Robots Rewired . | . . . . . . . . . Allies Hacked . | . . . . . . . . . Hacks Repelled . | . . . . . . . . . Allies | -11 -10 -10 -9 -8 -7 -6 -6 -6 -------- Run | Yrd Mat Min Mat Mat Fac Fac Was Fac Total Allies . | . . . . . . . . . Largest Group . | . . . . . . . . . Highest-Rated Group . | . . . . . . . . . Highest-Rated Ally . | . . . . . . . . . Total Orders . | . . . . . . . . . Ally Attacks . | . . . . . . . . . Total Damage . | . . . . . . . . . Kills . | . . . . . . . . . Allies Corrupted . | . . . . . . . . . Allies Melted . | . . . . . . . . . Intel | -11 -10 -10 -9 -8 -7 -6 -6 -6 ------- Run | Yrd Mat Min Mat Mat Fac Fac Was Fac Robot Analysis Total . | . . . . . . . . . Derelict Logs Recovered . | . . . . . . . . . Drone Launches . | . . . . . . . . . Drone Recoveries . | . . . . . . . . . Exploration | -11 -10 -10 -9 -8 -7 -6 -6 -6 ------------- Run | Yrd Mat Min Mat Mat Fac Fac Was Fac Turns Passed 3123 | 65 161 255 466 1061 514 373 75 153 Spaces Moved 3611 | 55 118 210 269 537 814 1163 148 297 Core 507 | 18 . 42 . . . 2 148 297 Treads 550 | . . . . 445 105 . . . Legs 684 | 37 118 168 269 92 . . . . Wheels . | . . . . . . . . . Hover . | . . . . . . . . . Flight 1870 | . . . . . 709 1161 . . Fastest Speed 26 | 50 120 50 120 145 30 26 50 50 Average Speed 76 | 97 120 106 157 166 52 31 50 50 Slowest Speed 225 | 120 120 120 190 225 152 115 50 50 Overloaded Moves 2 | . . . . . . 2 . . Propulsion Burnouts . | . . . . . . . . . Robots Hopped 9 | . . . . . 1 8 . . Cave-ins Triggered . | . . . . . . . . . Exploration Rate (%) 26 | 4 19 36 21 31 14 27 72 10 Regions Visited 8 Branch Regions 1 Pre-discovered Areas . | . . . . . . . . . Known Exits Taken . | . . . . . . . . . Unknown Exits Taken 6 | 1 1 1 1 1 1 . . . Scrap Searched . | . . . . . . . . . Spaces Dug 23 | . . . . 7 16 . . . Terrain Destroyed 296 | . . . 27 165 104 . . . Melee 7 | . . . . 7 . . . . Projectile . | . . . . . . . . . AOE 289 | . . . 27 158 104 . . . Terrain Rammed . | . . . . . . . . . Walls Destroyed . | . . . . . . . . . Machines Disabled . | . . . . . . . . . Actions | -11 -10 -10 -9 -8 -7 -6 -6 -6 --------- Run | Yrd Mat Min Mat Mat Fac Fac Was Fac Total 3849 | 66 128 231 300 627 877 1170 148 302 Wait 23 | 2 4 . 3 3 11 . . . Move 3586 | 54 117 209 268 536 811 1147 147 297 Hop 9 | . . . . . 1 8 . . Pick Up 51 | 5 1 4 12 11 13 4 . 1 Fast Attach 5 | . . . . . 3 2 . . Attach 38 | 5 1 5 9 10 6 1 1 . Detach 5 | . . 2 . . 2 1 . . Swap 3 | . . . . . 3 . . . Drop 28 | . . . 3 4 14 7 . . Fire 40 | . 5 9 5 15 6 . . . Melee 22 | . . . . 15 7 . . . Ram . | . . . . . . . . . Kick 4 | . . 2 . 2 . . . . Crush 31 | . . . . 31 . . . . Escape Stasis 4 | . . . . . . . . 4 Rewire . | . . . . . . . . . Trap . | . . . . . . . . . Miscellaneous . | . . . . . . . . . Route ------- -11/Scrapyard -10/Materials -10/Mines -9/Materials -8/Materials -7/Factory -6/Factory -6/Waste -6/Factory History --------- Turn | Location | Event 9 | -11/Scrapyard | Discovered new exit (range 15) 66 | -11/Scrapyard | Entered Materials 192 | -10/Materials | Discovered new exit (range 16) 227 | -10/Materials | Entered Mines 228 | -10/Mines | Assembled infested the area 232 | -10/Mines | Discovered new exit (range 11) 243 | -10/Mines | Met a Derelict bent on vengeance 257 | -10/Mines | Core integrity fell below 50% 296 | -10/Mines | Lost 5 parts (1p1n1u2w) 305 | -10/Mines | Core integrity fell below 20% 329 | -10/Mines | Build established: Mutant 482 | -10/Mines | Entered Materials 482 | -9/Materials | Evolved 2 slots: Utility x1, Weapon x1 719 | -9/Materials | Discovered new exit (range 14) 948 | -9/Materials | Entered another Materials area 948 | -8/Materials | Evolved 2 slots: Utility x1, Weapon x1 1105 | -8/Materials | Build established: Bomber 1804 | -8/Materials | Discovered new exit (range 13) 2009 | -8/Materials | Entered Factory 2009 | -7/Factory | Evolved 2 slots: Power x1, Propulsion x1 2459 | -7/Factory | Discovered new exit (range 14) 2520 | -7/Factory | Core integrity fell below 50% 2523 | -7/Factory | Entered another Factory area 2523 | -6/Factory | Evolved 2 slots: Propulsion x1, Weapon x1 2548 | -6/Factory | Lost 5 parts (2p1n1u1w) 2559 | -6/Factory | Build established: Sprinter 2748 | -6/Factory | Discovered new exit (range 17) 2829 | -6/Factory | Lost 3 parts (1p2n) 2865 | -6/Factory | Noticed a derelict Sapper rigging charges 2896 | -6/Factory | Sucked down chute 2896 | -6/Factory | Entered Waste 2899 | -6/Waste | Spotted C-40 Crusher 2902 | -6/Waste | Spotted C-40 Crusher 2908 | -6/Waste | Spotted C-40 Crusher 2911 | -6/Waste | EMP discharged 2933 | -6/Waste | Spotted C-40 Crusher 2933 | -6/Waste | Spotted C-40 Crusher 2952 | -6/Waste | Crushed by Compactor (1 part destroyed, 1 dropped) 2956 | -6/Waste | Spotted C-40 Crusher 2963 | -6/Waste | Discovered new exit (range 16) 2971 | -6/Waste | Entered Factory 3066 | -6/Factory | Core integrity fell below 50% 3090 | -6/Factory | Build established: Mutant 3103 | -6/Factory | Core integrity fell below 20% 3124 | -6/Factory | Destroyed by S-27 Virus with Autogun Last Messages --------------- U-05 Engineer lays Concrete. System corrupted: Matter fused (-7). Triggered Shock Trap. The floor emits a surge of raw power. System corrupted (+2). Slug penetrates Wall. U-05 Engineer destroyed. K-01 Serf collects debris. K-01 Serf destroyed. K-01 Serf collects debris. System corrupted: Heat flow error (+232). Triggered Stasis Trap. A bubble of rippling energy engulfs the area. Field strength at 94. K-01 Serf destroyed. Field strength at 88. Field strength at 77. K-01 Serf collects debris. Field strength at 71. Field strength at 61. Map ----- +----------------------------------------------------+ | ?????????????????????????????????????????????????? | | ?????????????????????????????????????????????????? | | ?????????????????????????????????????????????????? | | ?????????????????????????????????????????????????? | | ?????????????????????????????????????????????????? | | ?????????????????????????????????????????????????? | | ?????????????????????????????????????????????????? | | ?????????????????????????????????????????????????? | | ?????????????????????????????????????????????????? | | ?????????????????????????????????????????????????? | | +#####???????????????????????????????????????????? | | #?????????????????????????????????????????? | | ######+##????????????????????????????????????????? | | #????????????????????????????????????????? | | """ #????????????????????????????????????????? | | """ ! #?????????? ?????????????????????????????? | | """ #?????????? ?????????????????????????????? | | * #????????"" ?????????????????????????????? | | """ #????????"" ???????????????? #???????????? | | """ #????????""??????????????? ????????????? | | """ ] #???????? ?????????????? ??????????????? | | #???????? ???????????? ????????????????? | | ##+##############+############/#########?????????? | | !%| kRA ????????? | | *%= k ????????? | | = @ ????????? | | % ????????? | | h ^ ????????? | | ##+##### ###+####################+##?????????? | | ???????# # #??????????????????????? | | ???????# # """""" #??????????????????????? | | ???????# # """"""?????????????????????????? | | ???????# # """""??????????????????????????? | | ???????# # """"???????????????????????????? | | ???????# # ???????????????????????????? | | ???????# # = """"???????????????????????????? | | ???????# # """"???????????????????????????? | | ???????# # """????????????????????????????? | | ???????# # ! ""?????????????????????????????? | | ???????# + ??????????????????????????????? | | ???????? # ??????????????????????????????? | | ?????????????######??????????????????????????????? | | ?????????????????????????????????????????????????? | | ?????????????????????????????????????????????????? | | ?????????????????????????????????????????????????? | | ?????????????????????????????????????????????????? | | ?????????????????????????????????????????????????? | | ?????????????????????????????????????????????????? | | ?????????????????????????????????????????????????? | | ?????????????????????????????????????????????????? | +----------------------------------------------------+ Best States ------------- Heat Dissipation 37 Energy Generation 45 Energy Capacity 265 Matter Stores 304 Matter Capacity 450 Sight Range 18 Terrain Scan Density 10 Cloak Strength 2 Armor Coverage 225 Evasion (%) 64 Targeting Accuracy 10 Recoil Reduction 2 Item Schematics ----------------- None Robot Schematics ------------------ None Fabricated ------------ Nothing Alien Tech Used ----------------- None Achievements -------------- Hey, That's Mine! Remodeling Challenges ------------ None Game ------ Seed MetafieldMetafiberChainsword Manual? 0 Play Time 00:53:45 Cumulative 10.7 hours Start 2025.05.03 @ 17:27:35 End 2025.05.03 @ 18:19:03 Sessions 1 Manual Loads 0 Difficulty Rogue Special Mode None Game No. 13 Rogue 13 Adventurer 0 Explorer 0 Win Type - Total 0 Types 0/0/0/0/0/0/0/0/0 Lore% 3 Gallery% 15 Achievement% 17 Wizard Run 0 Options --------- Layout 1 ASCII 0 Keyboard 0 Movement Arrows Keybinds 0 Fullscreen 1 Font 24/Smallcaps Map View 50x35 Zoom Use 0% Tactical HUD 0 Map Filters NONE Filters NONE Steam 1 RUN: b7b840d7-0616-4d16-a899-ee77835d653b